bitfinex/quotes_SOLUSD_20240712
["timestamp","ask_amount","ask_price","bid_price","bid_amount"]
[1720788093264,10.0,136.13,136.04,7.4316585]
[1720788093470,7.21865891,136.12,136.04,7.4316585]
[1720788093666,10.0,136.13,136.04,7.4316585]
[1720788094589,10.0,136.15,136.04,7.4316585]
[1720788094891,10.0,136.13,136.04,7.4316585]
[1720788095399,7.21815738,136.12,136.04,7.4316585]
[1720788095585,10.0,136.13,136.04,7.4316585]
[1720788095789,7.21841382,136.12,136.04,7.4316585]
[1720788095988,10.0,136.13,136.04,7.4316585]
[1720788096287,7.21823783,136.12,136.04,7.4316585]
[1720788096587,10.0,136.11,136.04,7.4316585]
[1720788096769,10.0,136.13,136.04,7.4316585]
[1720788097090,7.21852535,136.12,136.05,1.46864599]
[1720788097284,10.0,136.13,136.05,1.46864599]
[1720788097486,7.21831508,136.12,136.04,7.4316585]
[1720788097682,10.0,136.13,136.04,7.4316585]
[1720788097891,7.21839553,136.12,136.04,7.4316585]
[1720788098183,10.0,136.13,136.04,7.4316585]
[1720788098400,7.21815596,136.12,136.04,7.4316585]
[1720788098567,10.0,136.13,136.04,7.4316585]
[1720788098767,7.21831597,136.12,136.04,7.4316585]
[1720788099098,10.0,136.13,136.04,7.4316585]
[1720788099468,10.0,136.15,136.04,7.4316585]
[1720788099667,7.21752793,136.14,136.05,1.46962841]
[1720788099882,10.0,136.15,136.05,46.46962841]
[1720788100874,10.0,136.15,136.06,15.293]
[1720788101068,10.0,136.15,136.07,46.46944556]
[1720788101291,10.0,136.15,136.08,1.46933757]
[1720788101492,10.0,136.15,136.06,15.293]
[1720788101685,10.0,136.13,136.06,15.293]
[1720788102473,10.0,136.13,136.04,7.4316585]
[1720788102673,7.21828808,136.12,136.04,7.4316585]
[1720788104189,10.0,136.13,136.04,7.4316585]
[1720788104566,7.2180397,136.12,136.04,7.4316585]
[1720788104766,10.0,136.13,136.04,7.4316585]
[1720788105063,7.21815992,136.12,136.04,7.4316585]
[1720788105371,10.0,136.13,136.04,7.4316585]
[1720788105565,10.0,136.11,136.04,7.4316585]
[1720788106674,10.0,136.13,136.04,7.4316585]
[1720788106870,7.21830809,136.12,136.05,1.01973143]
[1720788107075,10.0,136.15,136.05,1.01973143]
[1720788107382,10.0,136.13,136.04,7.4316585]
[1720788107580,7.21786201,136.12,136.04,7.4316585]
[1720788108509,10.0,136.16,136.04,7.4316585]
[1720788108670,72.21779478,136.15,136.04,7.4316585]
[1720788108994,17.21779478,136.14,136.04,7.4316585]
[1720788109173,10.0,136.12,136.04,7.4316585]
[1720788110106,10.0,136.14,136.05,1.4698789]
[1720788110298,7.21815417,136.13,136.05,1.4698789]
[1720788110508,65.0,136.15,136.05,1.4698789]
[1720788110686,7.21791769,136.14,136.05,1.4698789]
[1720788110999,27.21791769,136.13,136.05,1.4698789]
[1720788111199,20.0,136.13,136.05,1.4698789]
[1720788111401,10.0,136.16,136.05,1.4698789]
[1720788111585,27.21787036,136.15,136.05,46.4698789]
[1720788111786,7.21787036,136.14,136.05,46.4698789]
[1720788112101,20.0,136.15,136.05,46.4698789]
[1720788112394,7.21719789,136.14,136.05,46.4698789]
[1720788112704,20.0,136.15,136.05,82.8398789]
[1720788112873,20.45595686,136.13,136.05,82.8398789]
[1720788113072,20.0,136.15,136.05,82.8398789]
[1720788113272,27.6726433,136.14,136.05,82.8398789]
[1720788113497,20.45507057,136.13,136.05,82.8398789]
[1720788113705,10.0,136.16,136.05,82.8398789]
[1720788113879,27.67268967,136.15,136.05,82.8398789]
[1720788114079,27.67268967,136.14,136.05,81.37]
[1720788114287,27.67265169,136.13,136.05,81.37]
[1720788114480,10.0,136.16,136.05,81.37]
[1720788114481,20.45551453,136.12,136.06,1.4694834]
[1720788114691,20.45551453,136.13,136.05,1.46973251]
[1720788114896,27.67340935,136.12,136.04,7.4316585]
[1720788115107,27.67340935,136.11,136.04,7.4316585]
[1720788115276,20.45551453,136.1,136.04,7.4316585]
[1720788115477,10.0,136.12,136.04,7.4316585]
[1720788115678,27.67212544,136.11,136.04,7.4316585]
[1720788115977,20.45400275,136.1,136.04,7.4316585]
[1720788116178,10.0,136.12,136.04,7.4316585]
[1720788116502,27.67208032,136.11,136.04,7.4316585]
[1720788116687,20.45388723,136.1,136.04,7.4316585]
[1720788116888,20.45388723,136.09,136.04,7.4316585]
[1720788117201,10.0,136.1,136.04,7.4316585]
[1720788117503,27.67120302,136.09,136.04,7.4316585]
[1720788117677,20.4526134,136.08,136.04,7.4316585]
[1720788117997,10.0,136.14,136.04,7.4316585]
[1720788118185,47.67147333,136.13,136.04,7.4316585]
[1720788118379,27.67147333,136.12,136.04,7.4316585]
[1720788118700,27.67147333,136.11,136.05,1.46973696]
[1720788118895,27.67147333,136.1,136.04,7.4316585]
[1720788119198,20.45333186,136.09,136.04,7.4316585]
[1720788119409,10.0,136.14,136.04,7.4316585]
[1720788119594,27.67187164,136.13,136.04,7.4316585]
[1720788119778,27.67187164,136.12,136.05,45.0]
[1720788119977,27.67187164,136.11,136.05,1.45910072]
[1720788120300,27.67187164,136.1,136.04,7.4316585]
[1720788120483,20.454394,136.09,136.05,45.5397227]
[1720788120689,10.0,136.16,136.05,45.0]
[1720788120989,10.0,136.14,136.05,45.0]
[1720788121187,10.0,136.14,136.04,7.4316585]
[1720788121188,27.67217221,136.13,136.04,7.4316585]
[1720788121383,27.67217221,136.12,136.04,7.4316585]
[1720788121585,27.67217221,136.11,136.05,45.0]
[1720788121785,20.45507002,136.1,136.06,36.37]
[1720788121985,10.0,136.18,136.08,42.4269]
[1720788122202,27.67226827,136.17,136.09,0.59252746]
[1720788122378,27.67226827,136.16,136.09,45.85235384]
[1720788122577,27.67226827,136.15,136.09,45.85235384]
[1720788122803,20.45545167,136.14,136.09,45.85235384]
[1720788123015,20.45545167,136.21,136.12,36.37]
[1720788123227,27.67429359,136.2,136.13,0.85374103]
[1720788123504,10.0,136.25,136.15,6.5502]
[1720788123685,27.67483253,136.24,136.16,46.46848577]
[1720788123880,27.67483253,136.23,136.16,46.46848577]
[1720788124111,27.67483253,136.22,136.17,15.1287]
[1720788124281,10.0,136.27,136.18,46.46825649]
[1720788124608,27.67576776,136.26,136.18,46.46825649]
[1720788124901,20.46462232,136.25,136.18,82.83825649]
[1720788125205,32.3086,136.31,136.18,82.83825649]
[1720788125504,27.67593946,136.3,136.18,82.83825649]
[1720788125702,27.67593946,136.29,136.19,6.2118]
[1720788125884,20.46524152,136.28,136.2,82.83800263]
[1720788126079,20.46524152,136.3,136.2,82.83800263]
[1720788126293,7.21012234,136.29,136.2,82.83800263]
[1720788126480,25.7253,136.31,136.2,82.83800263]
[1720788126682,10.0,136.31,136.2,82.83800263]
[1720788126908,20.46654429,136.3,136.2,82.83800263]
[1720788127085,20.46654429,136.29,136.2,82.83800263]
[1720788127285,10.0,136.33,136.2,82.83800263]
[1720788127503,27.67651373,136.32,136.2,82.83800263]
[1720788127680,20.46677291,136.31,136.2,82.83800263]
[1720788127876,20.46677291,136.32,136.22,36.37]
[1720788128176,10.0,136.31,136.23,46.46765637]
[1720788128380,10.0,136.31,136.21,57.9969]
[1720788128596,10.0,136.31,136.22,1.46700992]
[1720788129083,46.37,136.33,136.22,45.96258532]
[1720788129307,20.46731671,136.32,136.22,45.96258532]
[1720788129617,46.37,136.33,136.22,45.96258532]
[1720788129790,45.0,136.32,136.22,45.96258532]
[1720788130114,10.0,136.31,136.22,45.0]
[1720788130713,10.0,136.31,136.21,57.9969]
[1720788131010,45.0,136.3,136.22,0.42529783]
[1720788131381,10.0,136.31,136.22,0.42529783]
[1720788131693,10.0,136.34,136.22,45.42529783]
[1720788131892,65.0,136.33,136.22,45.42529783]
[1720788132295,65.0,136.33,136.23,37.83774097]
[1720788132684,20.0,136.33,136.23,37.83774097]
[1720788133191,20.0,136.33,136.24,45.0]
[1720788133398,20.0,136.33,136.25,1.46752555]
[1720788135390,10.0,136.34,136.26,6.2934]
[1720788135592,10.0,136.37,136.28,15.2943]
[1720788135986,10.0,136.37,136.29,1.46733417]
[1720788136195,11.6293,136.39,136.29,1.46733417]
[1720788136416,10.0,136.39,136.29,1.46733417]
[1720788136713,10.0,136.37,136.28,15.2943]
[1720788136910,10.0,136.35,136.28,15.2943]
[1720788137485,10.0,136.33,136.26,6.2934]
[1720788138014,20.0,136.34,136.26,6.2934]
[1720788138314,10.0,136.33,136.26,6.2934]
[1720788139020,10.0,136.36,136.26,6.2934]
[1720788139220,10.0,136.38,136.27,81.37]
[1720788139610,10.0,136.38,136.28,1.32142482]
[1720788140140,270.0,136.4,136.29,36.37]
[1720788140298,36.52022236,136.42,136.31,15.4404]
[1720788140489,30.42692236,136.42,136.32,1.32103707]
[1720788140887,10.0,136.44,136.33,1.32094017]
[1720788141115,10.0,136.44,136.33,37.69094017]
[1720788141625,10.0,136.41,136.33,36.37]
[1720788141797,10.0,136.41,136.31,51.8104]
[1720788142109,10.0,136.39,136.31,15.4404]
[1720788142416,10.0,136.41,136.31,15.4404]
[1720788143420,10.0,136.39,136.31,15.4404]
[1720788147519,10.0,136.37,136.31,15.4404]
[1720788147721,10.0,136.39,136.31,15.4404]
[1720788148208,10.0,136.37,136.31,15.4404]
[1720788148520,10.0,136.4,136.31,15.4404]
[1720788148521,10.0,136.39,136.31,15.4404]
[1720788148716,10.0,136.37,136.31,15.4404]
[1720788149416,10.0,136.37,136.3,6.2782]
[1720788150412,45.0,136.38,136.3,6.2782]
[1720788150626,20.0,136.37,136.3,6.2782]
[1720788151012,30.0,136.37,136.3,6.2782]
[1720788151821,20.0,136.37,136.3,6.2782]
[1720788152026,45.0,136.38,136.3,6.2782]
[1720788152930,10.0,136.39,136.31,1.46696331]
[1720788153623,10.0,136.39,136.3,6.2782]
[1720788155809,10.0,136.37,136.3,6.2782]
[1720788157447,36.41171179,136.42,136.3,6.2782]
[1720788157448,10.0,136.39,136.3,6.2782]
[1720788157641,10.0,136.34,136.3,6.2782]
[1720788157820,30.0,136.33,136.3,6.2782]
[1720788158524,30.0,136.33,136.27,16.3265]
[1720788158852,10.0,136.37,136.27,16.3265]
[1720788159027,11.6293,136.39,136.28,45.0]
[1720788159637,20.0,136.38,136.28,45.0]
[1720788160137,10.0,136.37,136.28,45.0]
[1720788160338,10.0,136.39,136.28,45.0]
[1720788160746,10.0,136.39,136.29,1.26212663]
[1720788162222,10.0,136.43,136.31,16.5293]
[1720788162428,10.0,136.43,136.32,46.26184887]
[1720788162609,20.0,136.42,136.32,46.26184887]
[1720788163638,10.0,136.45,136.33,42.5029]
[1720788163815,10.0,136.45,136.34,46.4663695]
[1720788164015,20.48192588,136.44,136.34,46.4663695]
[1720788164216,10.0,136.43,136.34,45.0]
[1720788165039,19.98054019,136.42,136.34,45.0]
[1720788165210,10.0,136.45,136.35,0.78001935]
[1720788165540,10.0,136.43,136.34,0.78007656]
[1720788165842,10.0,136.41,136.34,0.78007656]
[1720788166011,10.0,136.41,136.33,6.2729]
[1720788167026,10.0,136.39,136.33,6.2729]
[1720788170443,10.0,136.37,136.33,6.2729]
[1720788171441,10.0,136.39,136.33,6.2729]
[1720788171768,10.0,136.37,136.33,6.2729]
[1720788171940,10.0,136.37,136.31,16.5293]
[1720788172552,7.20612011,136.36,136.31,16.5293]
[1720788172734,10.0,136.37,136.31,16.5293]
[1720788173051,40.0,136.35,136.29,6.5625]
[1720788173365,7.20707445,136.34,136.29,6.5625]
[1720788173520,40.0,136.35,136.29,6.5625]
[1720788173716,10.0,136.33,136.29,6.5625]
[1720788173947,40.0,136.35,136.29,6.5625]
[1720788174153,52.20721659,136.34,136.29,6.5625]
[1720788174321,45.0,136.34,136.29,6.5625]
[1720788174522,30.0,136.32,136.29,6.5625]
[1720788175347,30.0,136.32,136.26,6.1607]
[1720788176949,30.0,136.32,136.27,45.0]
[1720788177256,13.11608281,136.37,136.27,45.0]
[1720788177553,7.20667172,136.36,136.28,15.6831]
[1720788177757,7.20667172,136.35,136.29,45.0]
[1720788177943,10.0,136.39,136.29,45.0]
[1720788178141,7.20575584,136.38,136.29,45.0]
[1720788178351,7.20575584,136.37,136.29,45.0]
[1720788178649,7.20559607,136.36,136.29,45.0]
[1720788178848,36.23,136.4,136.3,0.53507545]
[1720788179035,7.20553869,136.39,136.31,6.6449]
[1720788179232,7.20553869,136.38,136.31,6.6449]
[1720788179437,7.20553869,136.37,136.31,6.6449]
[1720788179766,7.20553869,136.36,136.31,6.6449]
[1720788179927,13.20070787,136.41,136.31,6.6449]
[1720788180246,7.20497329,136.4,136.31,6.6449]
[1720788180453,7.20497329,136.39,136.31,6.6449]
[1720788180638,7.20497329,136.38,136.31,6.6449]
[1720788180837,7.20497329,136.37,136.31,6.6449]
[1720788181048,10.0,136.41,136.31,6.6449]
[1720788181233,27.20511112,136.4,136.31,6.6449]
[1720788181426,7.20511112,136.39,136.31,6.6449]
[1720788181826,10.0,136.38,136.31,6.6449]
[1720788182129,10.0,136.36,136.31,6.6449]
[1720788182448,7.20511112,136.35,136.31,6.6449]
[1720788183523,7.20511112,136.35,136.28,21.9449]
[1720788183524,10.0,136.34,136.28,21.9449]
[1720788183724,7.20511112,136.33,136.28,21.9449]
[1720788184146,10.0,136.37,136.28,21.9449]
[1720788184147,7.20511112,136.36,136.28,21.9449]
[1720788184329,7.20636424,136.35,136.28,21.9449]
[1720788184529,7.20636424,136.34,136.28,21.9449]
[1720788185047,7.20636424,136.33,136.28,21.9449]
[1720788185261,7.20636424,136.36,136.28,21.9449]
[1720788185461,7.20610433,136.35,136.29,45.0]
[1720788185754,7.20610433,136.34,136.28,21.9449]
[1720788185944,7.20610433,136.36,136.28,21.9449]
[1720788186256,7.20610433,136.35,136.28,21.9449]
[1720788186434,30.0,136.31,136.28,21.9449]
[1720788193132,30.0,136.31,136.25,6.5595]
[1720788193337,30.0,136.31,136.16,22.036]
[1720788193338,40.0,136.31,136.16,22.036]
[1720788193650,7.2074926,136.3,136.18,36.23]
[1720788193861,30.0,136.31,136.19,6.5595]
[1720788194170,7.20810918,136.3,136.19,6.5595]
[1720788194363,7.20810918,136.29,136.2,52.1422]
[1720788194566,7.20800763,136.3,136.2,52.1422]
[1720788194776,30.0,136.31,136.2,52.1422]
[1720788195057,7.20798503,136.3,136.22,36.23]
[1720788195244,30.0,136.31,136.22,36.23]
[1720788195453,7.20786591,136.3,136.23,45.0]
[1720788195758,30.0,136.31,136.23,45.0]
[1720788195963,7.20785735,136.3,136.23,45.0]
[1720788196145,40.0,136.31,136.2,52.1422]
[1720788196453,7.20830115,136.3,136.21,45.0]
[1720788196652,30.0,136.31,136.21,45.0]
[1720788196959,7.20808981,136.3,136.21,45.0]
[1720788197155,30.0,136.31,136.21,45.0]
[1720788197361,7.20817591,136.3,136.21,45.0]
[1720788197543,30.0,136.31,136.21,45.0]
[1720788197863,7.20832015,136.3,136.21,45.0]
[1720788198047,30.0,136.31,136.21,45.0]
[1720788198249,7.20829367,136.3,136.21,45.0]
[1720788198450,30.0,136.31,136.21,45.0]
[1720788198658,7.20834466,136.3,136.21,45.0]
[1720788198954,30.0,136.31,136.22,42.6959]
[1720788199162,30.0,136.31,136.23,45.0]
[1720788201163,30.0,136.28,136.22,6.4659]
[1720788201670,30.0,136.28,136.2,15.9122]
[1720788201977,46.23,136.27,136.19,6.3263]
[1720788202282,40.0,136.25,136.17,15.1068]
[1720788202636,30.0,136.25,136.17,15.1068]
[1720788203569,30.0,136.25,136.18,45.0]
[1720788203748,30.0,136.25,136.17,15.1068]
[1720788203968,40.0,136.25,136.16,6.3263]
[1720788205670,30.0,136.25,136.16,6.3263]
[1720788205854,40.0,136.25,136.16,6.3263]
[1720788206347,40.0,136.25,136.17,1.46850704]
[1720788206558,40.0,136.25,136.16,6.3263]
[1720788207293,15.8584,136.24,136.16,6.3263]
[1720788207455,30.0,136.23,136.16,6.3263]
[1720788209351,30.0,136.23,136.14,16.2528]
[1720788209675,40.0,136.23,136.12,6.5058]
[1720788209884,40.0,136.23,136.13,45.0]
[1720788210068,30.0,136.23,136.13,45.0]
[1720788210375,40.0,136.23,136.13,45.0]
[1720788210883,30.0,136.23,136.13,45.0]
[1720788211564,30.0,136.23,136.13,81.23]
[1720788215163,30.0,136.23,136.15,36.23]
[1720788215368,30.0,136.23,136.17,15.3335]
[1720788215574,16.0036,136.26,136.18,45.0]
[1720788216480,16.0036,136.26,136.19,0.60407742]
[1720788216779,16.0036,136.26,136.18,45.0]
[1720788220186,16.0036,136.26,136.18,51.6342]
[1720788220484,6.5971,136.28,136.18,51.6342]
[1720788220971,16.0041,136.29,136.19,56.23]
[1720788221182,22.1325,136.32,136.21,36.23]
[1720788221692,22.1325,136.32,136.22,45.0]
[1720788225112,22.1325,136.32,136.23,0.9352004]
[1720788225480,22.1325,136.32,136.22,45.0]
[1720788225699,10.0,136.31,136.22,45.0]
[1720788226270,10.0,136.31,136.21,45.0]
[1720788226476,10.0,136.29,136.17,36.23]
[1720788227786,10.0,136.29,136.19,45.0]
[1720788229213,16.0193,136.26,136.15,6.2628]
[1720788229378,30.0,136.23,136.15,6.2628]
[1720788231707,30.0,136.23,136.16,45.0]
[1720788232893,30.0,136.23,136.15,6.2628]
[1720788233990,30.0,136.23,136.16,45.0]
[1720788236891,6.0193,136.26,136.16,45.0]
[1720788237515,6.0193,136.26,136.16,81.23]
[1720788241599,20.21812845,136.25,136.17,1.46777092]
[1720788241799,6.0193,136.26,136.17,1.46777092]
[1720788242190,20.21805695,136.25,136.17,1.46777092]
[1720788242510,6.0193,136.26,136.17,1.46777092]
[1720788243019,20.21820852,136.25,136.17,1.46777092]
[1720788243193,6.0193,136.26,136.17,1.46777092]
[1720788243385,20.21813156,136.25,136.17,1.46777092]
[1720788243587,20.21813156,136.24,136.17,1.46777092]
[1720788243802,6.0193,136.26,136.17,1.46777092]
[1720788243993,27.42824384,136.25,136.17,1.46777092]
[1720788244193,6.0193,136.26,136.17,1.46777092]
[1720788244398,20.2177291,136.25,136.17,1.46777092]
[1720788244610,20.21734771,136.24,136.17,1.46777092]
[1720788244918,6.0193,136.26,136.17,1.46777092]
[1720788245097,27.42822089,136.25,136.17,1.46777092]
[1720788245301,20.21734627,136.24,136.16,45.0]
[1720788245492,20.21734627,136.25,136.16,45.0]
[1720788245686,6.0193,136.26,136.16,45.0]
[1720788245687,20.21779107,136.24,136.16,81.23]
[1720788246009,16.4615,136.28,136.16,81.23]
[1720788246205,27.42863978,136.27,136.18,36.23]
[1720788246391,20.21846333,136.26,136.19,60.0907]
[1720788246713,16.4615,136.28,136.19,60.0907]
[1720788247016,27.42886354,136.27,136.19,60.0907]
[1720788247203,20.21906001,136.26,136.2,42.6866]
[1720788247406,20.21906001,136.31,136.21,45.0]
[1720788247616,7.20944066,136.3,136.21,45.0]
[1720788247907,27.42850067,136.29,136.21,45.0]
[1720788248092,27.42850067,136.28,136.21,45.0]
[1720788248290,19.75353461,136.32,136.21,45.0]
[1720788248291,27.42850067,136.27,136.21,45.0]
[1720788248514,16.7087,136.32,136.21,45.0]
[1720788248705,27.42969618,136.31,136.21,45.0]
[1720788248899,16.7087,136.32,136.21,45.0]
[1720788249107,27.42969833,136.31,136.21,45.0]
[1720788249294,27.42969833,136.3,136.22,56.23]
[1720788249495,15.0794,136.32,136.23,45.4070316]
[1720788249698,20.22299926,136.31,136.23,45.4070316]
[1720788250013,15.261,136.35,136.23,45.4070316]
[1720788250195,27.43035556,136.34,136.24,36.75424413]
[1720788250386,20.22303873,136.33,136.25,45.0]
[1720788250587,15.261,136.35,136.26,0.52416718]
[1720788250588,20.22303873,136.32,136.26,0.52416718]
[1720788250805,20.22303873,136.34,136.27,0.52431208]
[1720788250988,20.22303873,136.34,136.25,45.0]
[1720788250989,7.20696415,136.33,136.25,45.0]
[1720788251189,20.22415396,136.32,136.25,45.0]
[1720788251389,25.261,136.35,136.25,45.0]
[1720788251625,27.43018066,136.34,136.25,45.0]
[1720788251795,27.43018066,136.33,136.25,45.0]
[1720788251989,27.43018066,136.32,136.25,45.0]
[1720788252213,27.43094356,136.31,136.21,36.23]
[1720788252416,20.22284292,136.3,136.22,45.0]
[1720788252626,10.0,136.31,136.21,36.23]
[1720788252823,27.43057022,136.3,136.2,6.4566]
[1720788253117,27.43057022,136.29,136.2,6.4566]
[1720788253287,10.0,136.33,136.2,6.4566]
[1720788253489,72.43058825,136.32,136.2,6.4566]
[1720788253709,27.43058825,136.31,136.2,6.4566]
[1720788253903,27.43058825,136.3,136.2,6.4566]
[1720788254118,27.43058825,136.29,136.21,45.0]
[1720788254296,27.43058825,136.28,136.21,45.0]
[1720788254489,20.2219195,136.27,136.21,45.0]
[1720788254694,25.9247,136.29,136.2,6.4566]
[1720788254894,27.42991745,136.28,136.2,6.4566]
[1720788255111,25.9247,136.29,136.2,6.4566]
[1720788255112,27.42991745,136.27,136.2,6.4566]
[1720788255322,25.9247,136.29,136.2,6.4566]
[1720788255627,27.42987007,136.28,136.2,6.4566]
[1720788255917,20.22000917,136.27,136.2,6.4566]
[1720788256123,20.22000917,136.28,136.21,45.0]
[1720788256421,7.20986318,136.27,136.21,45.0]
[1720788256623,20.22000917,136.26,136.17,36.23]
[1720788256827,25.9247,136.29,136.18,45.0]
[1720788257001,47.42982387,136.28,136.17,45.0]
[1720788257196,27.42982387,136.27,136.17,45.0]
[1720788257400,20.21988116,136.26,136.17,45.0]
[1720788257706,20.2201223,136.25,136.16,6.4049]
[1720788257911,10.0,136.27,136.16,6.4049]
[1720788258111,27.42959215,136.26,136.16,6.4049]
[1720788258317,20.21926326,136.25,136.16,6.4049]
[1720788258631,56.23,136.28,136.16,6.4049]
[1720788258819,27.42942076,136.27,136.16,6.4049]
[1720788259008,7.21062177,136.26,136.17,45.0]
[1720788259205,56.23,136.28,136.17,45.0]
[1720788259407,7.21049928,136.27,136.17,45.0]
[1720788259615,7.21049928,136.26,136.17,45.0]
[1720788259919,56.23,136.28,136.17,45.0]
[1720788260096,7.21050108,136.27,136.17,45.0]
[1720788260293,25.9247,136.29,136.17,81.23]
[1720788260294,15.9247,136.29,136.17,81.23]
[1720788260495,7.21012141,136.28,136.17,81.23]
[1720788260727,7.21012141,136.27,136.17,81.23]
[1720788260926,15.9247,136.29,136.17,81.23]
[1720788261223,7.20972519,136.28,136.17,81.23]
[1720788261425,7.20972519,136.27,136.17,81.23]
[1720788261725,15.9247,136.29,136.17,81.23]
[1720788261924,7.20987945,136.28,136.17,81.23]
[1720788262099,7.20987945,136.27,136.17,45.0]
[1720788262423,7.21022993,136.26,136.17,45.0]
[1720788262610,25.9247,136.29,136.17,45.0]
[1720788262793,27.21010595,136.28,136.17,45.0]
[1720788262999,7.21010595,136.27,136.17,45.0]
[1720788263219,20.0,136.28,136.17,45.0]
[1720788263411,7.20983749,136.27,136.17,45.0]
[1720788263725,7.20983749,136.26,136.17,45.0]
[1720788263898,20.0,136.28,136.17,45.0]
[1720788264223,7.21060555,136.27,136.17,45.0]
[1720788264409,7.21060555,136.26,136.17,45.0]
[1720788264606,7.21060555,136.25,136.17,45.0]
[1720788264816,10.0,136.27,136.17,45.0]
[1720788265018,7.2106072,136.26,136.17,45.0]
[1720788265207,10.0,136.27,136.17,45.0]
[1720788265411,7.21032172,136.26,136.17,45.0]
[1720788265627,7.21032172,136.25,136.17,45.0]
[1720788265932,10.0,136.27,136.17,45.0]
[1720788266229,7.21056509,136.26,136.17,45.0]
[1720788266428,36.23,136.28,136.17,45.0]
[1720788266621,7.21051465,136.27,136.17,45.0]
[1720788266934,36.23,136.28,136.17,45.0]
[1720788267107,7.21030113,136.27,136.18,0.58915589]
[1720788267304,7.21030113,136.26,136.18,0.58915589]
[1720788267508,25.9247,136.29,136.17,45.0]
[1720788267716,27.21027418,136.28,136.17,45.0]
[1720788267915,7.21027418,136.27,136.17,45.0]
[1720788268119,20.0,136.28,136.17,45.0]
[1720788268442,7.21010685,136.27,136.17,45.0]
[1720788268635,7.21010685,136.26,136.17,45.0]
[1720788268932,20.0,136.28,136.17,45.0]
[1720788269137,7.21030318,136.27,136.17,45.0]
[1720788269303,7.21030318,136.26,136.17,45.0]
[1720788269631,20.0,136.28,136.17,45.0]
[1720788269831,7.3398,136.25,136.17,45.0]
[1720788270034,7.3398,136.25,136.18,1.46817258]
[1720788272238,7.3398,136.25,136.17,45.0]
[1720788272529,7.3406,136.23,136.17,45.0]
[1720788272832,7.3407,136.23,136.17,45.0]
[1720788273811,18.3475,136.26,136.16,6.4049]
[1720788274015,7.2110901,136.25,136.16,6.4049]
[1720788274221,18.3475,136.26,136.16,6.4049]
[1720788274411,7.21088553,136.25,136.16,6.4049]
[1720788274616,18.16,136.24,136.19,18.16]
[1720788275017,7.3406,136.23,136.19,18.16]
[1720788275217,25.5006,136.23,136.19,18.16]
[1720788275737,25.5001,136.24,136.19,18.16]
[1720788275924,7.3405,136.23,136.19,18.16]
[1720788276436,25.5005,136.23,136.19,18.16]
[1720788277213,7.341,136.22,136.18,18.16]
[1720788277939,18.16,136.22,136.16,6.4049]
[1720788278145,18.16,136.21,136.17,18.16]
[1720788278347,25.5018,136.21,136.16,6.4049]
[1720788278544,18.16,136.2,136.16,24.5649]
[1720788279843,18.16,136.21,136.16,24.5649]
[1720788280439,7.3407,136.23,136.17,18.16]
[1720788280440,18.16,136.22,136.17,18.16]
[1720788280640,25.501,136.22,136.17,18.16]
[1720788281137,18.16,136.21,136.16,24.5649]
[1720788281833,18.16,136.21,136.17,45.0]
[1720788282039,18.16,136.21,136.16,24.5649]
[1720788282223,18.16,136.2,136.12,22.4724]
[1720788282535,16.578,136.23,136.14,18.16]
[1720788282536,18.16,136.19,136.14,18.16]
[1720788282710,18.16,136.19,136.15,45.0]
[1720788283117,18.16,136.2,136.15,63.16]
[1720788283543,18.16,136.21,136.17,18.16]
[1720788283838,18.16,136.22,136.17,18.16]